{"text_format":"3","workbook":"xlsx","n_sheets":2,"sheets":["Відстеження відповідей","Звіт про відповіді"],"not_rendered":{"charts":2,"defined_names":22},"read":"whole","date_system":"1900"}

{"sheet":"Відстеження відповідей","index":0,"n_rows":15,"n_cols":15,"rows_kept":15,"merged":[[0,3,0,4],[0,5,0,7]]}
[{"$nulls":5},"ЗВІТ ПРО ВІДПОВІДІ"]
[null,"ДАТА ВЕСІЛЛЯ",null,"відстеження весільних запрошень"]
[null,{"$f":"TODAY()+283","v":"2023-05-21"},null,"ІМ’Я ГОСТЯ","НАДІСЛАНО","ВІДПОВІДЬ НА ЗАПРОШЕННЯ","ВЕЧІРКА","ГІСТЬ","ЗВ’ЯЗКИ","АДРЕСА","МІСТО","ОБЛАСТЬ","ПОШТОВИЙ ІНДЕКС","ТЕЛЕФОН","АДРЕСА ЕЛ. ПОШТИ"]
[null,"ЗАЛИШИЛОСЯ ДНІВ",null,"Ім’я 1","Так","Так",1,"Зі сторони чоловіка","Брат","Адреса","Місто","Область","ПОШТОВИЙ ІНДЕКС","Телефон","perevirka@example.com"]
[null,{"$f":"ЗалишилосяДнів","v":283},null,"Ім’я 2","Так","Ні",3,"Зі сторони чоловіка","Друг","Адреса","Місто","Область","ПОШТОВИЙ ІНДЕКС","Телефон","perevirka@example.com"]
[null,"ПЛАНУЮТЬ",null,"Ім’я 3","Так","Так",1,"Інші","Друг","Адреса","Місто","Область","ПОШТОВИЙ ІНДЕКС","Телефон","perevirka@example.com"]
[null,{"$f":"ЗагальнаКількістьЗапрошенихЯкіПрийдуть","v":12},null,"Ім’я 4","Так","Ні",2,"Зі сторони дружини","Друг","Адреса","Місто","Область","ПОШТОВИЙ ІНДЕКС","Телефон","perevirka@example.com"]
[null,"НЕ ПЛАНУЮТЬ",null,"Ім’я 5","Так","Так",2,"Зі сторони дружини","Друг","Адреса","Місто","Область","ПОШТОВИЙ ІНДЕКС","Телефон","perevirka@example.com"]
[null,{"$f":"ЗагальнаКількістьЗапрошенихЯкіНеПрийдуть","v":6},null,"Ім’я 6","Так","Під сумнівом",null,"Інші","Друг","Адреса","Місто","Область","ПОШТОВИЙ ІНДЕКС","Телефон","perevirka@example.com"]
[null,"НЕ ВІДПОВІЛИ",null,"Ім’я 7","Так","Так",2,"Зі сторони дружини","Друг","Адреса","Місто","Область","ПОШТОВИЙ ІНДЕКС","Телефон","perevirka@example.com"]
[null,{"$f":"ЗагальнаКількістьНенаданихВідповідей","v":1},null,"Ім’я 8","Так","Ні",1,"Інші","Друг","Адреса","Місто","Область","ПОШТОВИЙ ІНДЕКС","Телефон","perevirka@example.com"]
[{"$nulls":3},"Ім’я 9","Так","Так",4,"Зі сторони чоловіка","Друг","Адреса","Місто","Область","ПОШТОВИЙ ІНДЕКС","Телефон","perevirka@example.com"]
[{"$nulls":3},"Ім’я 10","Так","Так",2,"Зі сторони чоловіка","Друг","Адреса","Місто","Область","ПОШТОВИЙ ІНДЕКС","Телефон","perevirka@example.com"]
[{"$nulls":3},"Ім’я 11","Так",null,null,"Зі сторони дружини","Брат","Адреса","Місто","Область","ПОШТОВИЙ ІНДЕКС","Телефон","perevirka@example.com"]
[{"$nulls":3},"УСЬОГО:",{"$f":"COUNTIF('Відстеження відповідей'!$E$4:$E$14,\"Так\")","v":11},{"$f":"COUNTA('Відстеження відповідей'!$F$4:$F$14)","v":10},{"$f":"SUBTOTAL(109,tblInvites[ВЕЧІРКА])","v":18}]

{"sheet":"Звіт про відповіді","index":1,"n_rows":11,"n_cols":15,"rows_kept":11,"merged":[[0,3,0,4],[0,5,0,8],[2,3,6,3],[2,4,6,4],[7,3,11,3],[7,4,11,4]]}
[{"$nulls":3},"ВІДСТЕЖЕННЯ \nВІДПОВІДЕЙ"]
[null,"ДАТА ВЕСІЛЛЯ",null,"звіт про відповіді",{"$nulls":10},"нотатки"]
[null,{"$f":"ДатаВесілля","v":"2023-05-21"},null,"ТАК","Звичайну гістограму з відповідями \"Так\" гостей наведено в цій клітинці."]
[null,"ЗАЛИШИЛОСЯ ДНІВ",{"$nulls":3},"ІНШІ",{"$f":"IFERROR(SUMIFS(tblInvites[ВЕЧІРКА],tblInvites[ГІСТЬ],\"=Інші\",tblInvites[ВІДПОВІДЬ НА ЗАПРОШЕННЯ],\"Так\"),0)","v":1},{"$f":"tblInvites[[#Totals],[НАДІСЛАНО]]","v":11}]
[null,{"$f":"ЗалишилосяДнів","v":283},{"$nulls":3},"ЗІ СТОРОНИ ДРУЖИНИ",{"$f":"IFERROR(SUMIFS(tblInvites[ВЕЧІРКА],tblInvites[ГІСТЬ],\"=Зі сторони дружини\",tblInvites[ВІДПОВІДЬ НА ЗАПРОШЕННЯ],\"Так\"),0)","v":4},{"$f":"tblInvites[[#Totals],[НАДІСЛАНО]]","v":11}]
[null,"ПЛАНУЮТЬ",{"$nulls":3},"ЗІ СТОРОНИ ЧОЛОВІКА",{"$f":"IFERROR(SUMIFS(tblInvites[ВЕЧІРКА],tblInvites[ГІСТЬ],\"=Зі сторони чоловіка\",tblInvites[ВІДПОВІДЬ НА ЗАПРОШЕННЯ],\"Так\"),0)","v":7},{"$f":"tblInvites[[#Totals],[НАДІСЛАНО]]","v":11}]
[null,{"$f":"ЗагальнаКількістьЗапрошенихЯкіПрийдуть","v":12}]
[null,"НЕ ПЛАНУЮТЬ",null,"НІ","Звичайну гістограму з відповідями \"Ні\" гостей наведено в цій клітинці."]
[null,{"$f":"ЗагальнаКількістьЗапрошенихЯкіНеПрийдуть","v":6},{"$nulls":3},"ІНШІ",{"$f":"IFERROR(SUMIFS(tblInvites[ВЕЧІРКА],tblInvites[ГІСТЬ],\"=Інші\",tblInvites[ВІДПОВІДЬ НА ЗАПРОШЕННЯ],\"Ні\"),0)","v":1},{"$f":"tblInvites[[#Totals],[НАДІСЛАНО]]","v":11}]
[null,"НЕ ВІДПОВІЛИ",{"$nulls":3},"ЗІ СТОРОНИ ДРУЖИНИ",{"$f":"IFERROR(SUMIFS(tblInvites[ВЕЧІРКА],tblInvites[ГІСТЬ],\"=Зі сторони дружини\",tblInvites[ВІДПОВІДЬ НА ЗАПРОШЕННЯ],\"Ні\"),0)","v":2},{"$f":"tblInvites[[#Totals],[НАДІСЛАНО]]","v":11}]
[null,{"$f":"ЗагальнаКількістьНенаданихВідповідей","v":1},{"$nulls":3},"ЗІ СТОРОНИ ЧОЛОВІКА",{"$f":"IFERROR(SUMIFS(tblInvites[ВЕЧІРКА],tblInvites[ГІСТЬ],\"=Зі сторони чоловіка\",tblInvites[ВІДПОВІДЬ НА ЗАПРОШЕННЯ],\"Ні\"),0)","v":3},{"$f":"tblInvites[[#Totals],[НАДІСЛАНО]]","v":11}]